[Event "18th Lviv Tradition November 2017"]
[Site "Lviv"]
[Date "2017.11.06"]
[Round "1"]
[White "Anwesh, Upadhyaya"]
[Black "Shkuran, Danylo"]
[Result "1/2-1/2"]
[ECO "B90"]
[WhiteElo "2368"]
[BlackElo "2403"]
[Annotator "NA"]
[PlyCount "62"]
[EventDate "2017.??.??"]
[EventType "tourn"]
[EventCountry "UKR"]
[SourceTitle "playchess.com"]
[Source "ChessBase"]
[SourceQuality "1"]
[TimeControl "5400+30"]

1. e4 c5 2. Nf3 d6 3. d4 cxd4 4. Nxd4 Nf6 5. Nc3 a6 6. f3 e5 7. Nb3 Be6 8. Be3 h5 9. Nd5 Bxd5 10. exd5 Nbd7 11. Qd2 g6 12. Be2 Bg7 13. O-O b6 14. c4 O-O 15. Rae1 Re8 16. Kh1 Rb8 17. Na1 e4 18. Nc2 exf3 19. gxf3 Ne5 20. Nd4 Qd7 21. Bh6 Bxh6 22. Qxh6 b5 23. cxb5 axb5 24. Rg1 Nxd5 25. Rg2 Qe7 26. Bxb5 Rec8 27. Bc6 Nf6 28. Bb5 Nd5 29. Bc6 Nf6 30. Bb5 Nd5 31. Bc6 Nf6 1/2-1/2

[Event "18th Lviv Tradition November 2017"]
[Site "Lviv"]
[Date "2017.11.08"]
[Round "5"]
[White "Kryvoruchko, Vita"]
[Black "Zgadzaj, Rafal"]
[Result "1-0"]
[ECO "B06"]
[WhiteElo "2148"]
[BlackElo "2133"]
[Annotator "NA"]
[PlyCount "53"]
[EventDate "2017.??.??"]
[EventType "tourn"]
[EventCountry "UKR"]
[SourceTitle "playchess.com"]
[Source "ChessBase"]
[SourceQuality "1"]
[TimeControl "5400+30"]

{[%evp 8,40,48,40,45,47,43,52,52,31,63,10,20,12,15,0,82,51,72,81,69,56,128,129,141,135,472,498,477,473,32767,32767,575,570,858]} 1. e4 {[%emt 0:18:19]} d6 {[%emt 0:01:26]} 2. d4 {[%emt 0:00:05]} g6 {[%emt 0:00:06]} 3. Nc3 {[%emt 0:00:04]} Bg7 {[%emt 0:00:02]} 4. Be3 {[%emt 0:00:06]} a6 {[%emt 0:01:21]} 5. a4 {[%emt 0:00:05]} b6 {[%emt 0:05:12]} 6. Qd2 {[%emt 0:00:06]} Bb7 {[%emt 0:02:44] B06: Modern Defence} 7. f3 {[%emt 0:00:05] LiveBook: 20 Games} (7. h4 Nf6 8. f3 Nbd7 9. g4 h6 10. Be2 c5 11. d5 Ne5 12. Nh3 Qc7 13. Nf2 Bc8 14. Rg1 {1-0 (38) Onischuk,V (2613)-Stefanova,A (2505) Almaty 2016}) 7... Nd7 {[%emt 0:00:03]} 8. Nge2 {[%emt 0:00:05]} h5 {[%emt 0:06:42]} 9. h4 {[%emt 0:02:06]} Ngf6 {[%emt 0:00:30]} 10. Nf4 {[%emt 0:03:52]} e5 {[%emt 0:07:57]} 11. Nh3 {[%emt 0:00:57]} d5 $146 {[%emt 0:01:27]} ({Predecessor:} 11... exd4 $11 12. Bxd4 Ne5 {1-0 (48) Orlov,A (2433)-Weiler,W (2170) Duesseldorf 2005}) 12. exd5 {[%emt 0:07:04]} Nxd5 {[%emt 0:02:04]} 13. Nxd5 {[%emt 0:00:08]} Bxd5 {[%emt 0:00:52]} 14. O-O-O {[%emt 0:04:08]} Bb7 {[%emt 0:19:42]} ({Black should try} 14... O-O) 15. Bc4 {[%emt 0:02:29]} O-O {[%emt 0:02:35]} 16. Ng5 {[%emt 0:00:20]} Qc8 $2 {[%emt 0:05:49]} (16... Qf6 $16 {leistet mehr Widerstand.}) 17. Qd3 {[%emt 0:01:18]} e4 {[%emt 0:04:33]} 18. fxe4 {[%emt 0:00:06]} Nf6 {[%emt 0:01:26]} 19. Rhf1 {[%emt 0:01:19]} Qg4 {[%emt 0:07:35]} 20. Rf4 {[%emt 0:00:59]} Qxg2 $18 {[%emt 0:00:33]} 21. Rg1 {[%emt 0:00:31]} Qh2 {[%emt 0:00:23]} 22. Rxf6 {[%emt 0:00:19]} Bxf6 {[%emt 0:05:17]} 23. e5 {[%emt 0:00:51]} Kg7 {[%emt 0:00:44]} 24. exf6+ {[%emt 0:00:05]} Kxf6 {[%emt 0:00:28]} 25. Nxf7 {[%emt 0:00:57]} Rg8 {[%emt 0:01:10]} 26. Nh6 {[%emt 0:00:20]} Ke7 {[%emt 0:00:43]} 27. Nxg8+ {[%emt 0:00:22]} 1-0